fUST/lending_fUST_20251009
["ID","MTS","AMOUNT","RATE_DAILY","PERIOD"]
[390035065,1759941043152,-2460.9,0.00019178,2]
[390035067,1759941043162,-500.0,0.00019178,2]
[390035070,1759941043172,-500.0,0.00019178,2]
[390035071,1759941043181,-2251.78,0.00019178,2]
[390035074,1759941043192,-151.0,0.00019178,2]
[390035077,1759941043213,-535.97,0.00019178,2]
[390035079,1759941043224,-1637.79,0.00019178,2]
[390035081,1759941043234,-500.0,0.00019178,2]
[390035083,1759941043245,-961.2,0.00019178,2]
[390035085,1759941043255,-1197.37,0.00019178,2]
[390035087,1759941043265,-500.0,0.00019178,2]
[390035089,1759941043276,-151.0,0.00019178,2]
[390035091,1759941043287,-500.0,0.00019178,2]
[390035094,1759941043298,-500.0,0.00019178,2]
[390035095,1759941043308,-500.0,0.00019178,2]
[390035098,1759941043318,-879.96,0.00019178,2]
[390035100,1759941043330,-2522.36,0.00019178,2]
[390035102,1759941043341,-928.87,0.00019178,2]
[390035104,1759941043351,-2190.85,0.00019178,2]
[390035129,1759941043578,-151.757169,0.00019178,2]
[390035131,1759941043589,-2092.45,0.00019178,2]
[390035133,1759941043599,-671.83,0.00019178,2]
[390035135,1759941043608,-1334.2,0.00019178,2]
[390035137,1759941043617,-151.0,0.00019178,2]
[390035139,1759941043627,-151.0,0.00019178,2]
[390035141,1759941043636,-587.04,0.00019178,2]
[390035143,1759941043645,-500.0,0.00019178,2]
[390035145,1759941043654,-500.0,0.00019178,2]
[390035147,1759941043664,-151.0,0.00019178,2]
[390035149,1759941043673,-3550.5,0.00019178,2]
[390035151,1759941043682,-2625.62,0.00019178,2]
[390035154,1759941043692,-1894.81,0.00019178,2]
[390035155,1759941043701,-500.0,0.00019178,2]
[390035158,1759941043711,-500.0,0.00019178,2]
[390035160,1759941043721,-151.0,0.00019178,2]
[390035162,1759941043730,-500.0,0.00019178,2]
[390035164,1759941043744,-2816.96,0.00019178,2]
[390035166,1759941043754,-500.0,0.00019178,2]
[390035168,1759941043764,-224.001281,0.00019178,2]
[390035170,1759941043775,-224.001281,0.00019178,2]
[390035172,1759941043787,-224.001281,0.00019178,2]
[390035175,1759941043798,-580.45,0.00019178,2]
[390035177,1759941043810,-224.001281,0.00019178,2]
[390035179,1759941043820,-1077.95,0.00019178,2]
[390035181,1759941043830,-500.0,0.00019178,2]
[390035183,1759941043840,-1802.85,0.00019178,2]
[390035185,1759941043850,-500.0,0.00019178,2]
[390035187,1759941043861,-639.19078176,0.00019178,2]
[390035189,1759941043871,-500.0,0.00019178,2]
[390035191,1759941043880,-2400.81,0.00019178,2]
[390035193,1759941043890,-506.96,0.00019178,2]
[390035195,1759941043900,-450.42373403,0.00019178,2]
[390035197,1759941043911,-191.16,0.00019178,2]
[390035199,1759941043923,-500.0,0.00019178,2]
[390035201,1759941043933,-500.0,0.00019178,2]
[390035203,1759941043942,-751.92,0.00019178,2]
[390035205,1759941043951,-500.0,0.00019178,2]
[390035208,1759941043961,-500.0,0.00019178,2]
[390035210,1759941043971,-151.0,0.00019178,2]
[390035211,1759941043981,-704.71,0.00019178,2]
[390035214,1759941043991,-290.50869426,0.00019178,2]
[390035216,1759941044002,-151.0,0.00019178,2]
[390035218,1759941044011,-500.0,0.00019178,2]
[390035220,1759941044020,-151.0,0.00019178,2]
[390035222,1759941044030,-500.0,0.00019178,2]
[390035224,1759941044040,-151.0,0.00019178,2]
[390035226,1759941044050,-500.0,0.00019178,2]
[390035228,1759941044060,-151.0,0.00019178,2]
[390035230,1759941044069,-500.0,0.00019178,2]
[390035232,1759941044079,-500.0,0.00019178,2]
[390035234,1759941044088,-151.0,0.00019178,2]
[390035236,1759941044098,-500.0,0.00019178,2]
[390035238,1759941044107,-541.9,0.00019178,2]
[390035240,1759941044117,-500.0,0.00019178,2]
[390035242,1759941044126,-500.0,0.00019178,2]
[390035244,1759941044136,-5268.64,0.00019178,2]
[390035246,1759941044146,-151.0,0.00019178,2]
[390035248,1759941044157,-680.83,0.00019178,2]
[390035250,1759941044167,-590.4284053,0.00019178,2]
[390035252,1759941044176,-224.564696,0.00019178,2]
[390035254,1759941044185,-151.0,0.00019178,2]
[390035256,1759941044197,-151.0,0.00019178,2]
[390035258,1759941044206,-500.0,0.00019178,2]
[390035260,1759941044216,-500.0,0.00019178,2]
[390035262,1759941044225,-500.0,0.00019178,2]
[390035264,1759941044235,-2028.68,0.00019178,2]
[390035265,1759941044244,-601.02,0.00019178,2]
[390035266,1759941044254,-500.0,0.00019178,2]
[390035267,1759941044263,-1508.88,0.00019178,2]
[390035268,1759941044272,-500.0,0.00019178,2]
[390035269,1759941044281,-500.0,0.00019178,2]
[390035270,1759941044294,-415.14995188,0.00019178,2]
[390035271,1759941044303,-3584.44,0.00019178,2]
[390035272,1759941044312,-500.0,0.00019178,2]
[390035273,1759941044320,-500.0,0.00019178,2]
[390035274,1759941044330,-593.68,0.00019178,2]
[390035275,1759941044339,-517.69344378,0.00019178,2]
[390035276,1759941044348,-506.12,0.00019178,2]
[390035277,1759941044357,-500.0,0.00019178,2]
[390035278,1759941044367,-1091.78,0.00019178,2]
[390035279,1759941044376,-395.15029923,0.00019178,2]
[390035280,1759941044386,-161.64,0.00019178,2]
[390035281,1759941044395,-500.0,0.00019178,2]
[390035282,1759941044404,-151.0,0.00019178,2]
[390035283,1759941044413,-11768.05,0.00019178,2]
[390035285,1759941044422,-467.74460349,0.00019178,2]
[390035287,1759941044431,-500.0,0.00019178,2]
[390035289,1759941044440,-500.0,0.00019178,2]
[390035291,1759941044450,-500.0,0.00019178,2]
[390035293,1759941044459,-151.0,0.00019178,2]
[390035295,1759941044468,-500.0,0.00019178,2]
[390035297,1759941044478,-836.87,0.00019178,2]
[390035299,1759941044488,-197.296677,0.00019178,2]
[390035301,1759941044497,-151.0,0.00019178,2]
[390035303,1759941044507,-500.0,0.00019178,2]
[390035305,1759941044518,-508.6,0.00019178,2]
[390035307,1759941044527,-1304.1,0.00019178,2]
[390035309,1759941044538,-151.0,0.00019178,2]
[390035311,1759941044547,-500.0,0.00019178,2]
[390035313,1759941044557,-500.0,0.00019178,2]
[390035315,1759941044566,-500.0,0.00019178,2]
[390035317,1759941044576,-24419.73,0.00019178,2]
[390035319,1759941044586,-830.05,0.00019178,2]
[390035321,1759941044595,-673.13,0.00019178,2]
[390035323,1759941044605,-2268.82,0.00019178,2]
[390035325,1759941044614,-500.0,0.00019178,2]
[390035327,1759941044624,-151.0,0.00019178,2]
[390035329,1759941044634,-500.0,0.00019178,2]
[390035331,1759941044645,-151.0,0.00019178,2]
[390035333,1759941044654,-500.0,0.00019178,2]
[390035335,1759941044664,-500.0,0.00019178,2]
[390035337,1759941044674,-3522.47,0.00019178,2]
[390035339,1759941044683,-500.0,0.00019178,2]
[390035341,1759941044693,-846.02,0.00019178,2]
[390035343,1759941044703,-1729.47,0.00019178,2]
[390035345,1759941044713,-500.0,0.00019178,2]
[390035347,1759941044723,-500.0,0.00019178,2]
[390035349,1759941044733,-580.79,0.00019178,2]
[390035351,1759941044743,-774.03,0.00019178,2]
[390035353,1759941044752,-500.0,0.00019178,2]
[390035355,1759941044762,-757.55,0.00019178,2]
[390035357,1759941044772,-594.31,0.00019178,2]
[390035359,1759941044781,-500.0,0.00019178,2]
[390035361,1759941044792,-500.0,0.00019178,2]
[390035364,1759941044802,-748.8,0.00019178,2]
[390035366,1759941044812,-1878.07,0.00019178,2]
[390035367,1759941044823,-2501.66,0.00019178,2]
[390035370,1759941044832,-500.0,0.00019178,2]
[390035372,1759941044843,-9831.47,0.00019178,2]
[390035374,1759941044852,-2262.41,0.00019178,2]
[390035376,1759941044862,-1336.35,0.00019178,2]
[390035378,1759941044872,-15536.82,0.00019178,2]
[390035380,1759941044881,-4324.86,0.00019178,2]
[390035382,1759941044890,-696.97,0.00019178,2]
[390035384,1759941044902,-1371.43,0.00019178,2]
[390035386,1759941044912,-1980.48,0.00019178,2]
[390035388,1759941044921,-151.0,0.00019178,2]
[390035390,1759941044930,-500.0,0.00019178,2]
[390035392,1759941044940,-500.0,0.00019178,2]
[390035394,1759941044950,-500.0,0.00019178,2]
[390035396,1759941044959,-500.0,0.00019178,2]
[390035398,1759941044969,-4752.92,0.00019178,2]
[390035400,1759941044977,-1290.08,0.00019178,2]
[390035402,1759941044987,-376.27001604,0.00019178,2]
[390035404,1759941044996,-4881.08,0.00019178,2]
[390035406,1759941045006,-12707.65,0.00019178,2]
[390035408,1759941045016,-1197.42,0.00019178,2]
[390035410,1759941045025,-500.0,0.00019178,2]
[390035412,1759941045035,-500.0,0.00019178,2]
[390035414,1759941045044,-2598.22,0.00019178,2]
[390035416,1759941045054,-151.0,0.00019178,2]
[390035418,1759941045064,-500.0,0.00019178,2]
[390035421,1759941045083,-6369.11,0.00019178,2]
[390035423,1759941045095,-1633.93,0.00019178,2]
[390035425,1759941045106,-2032.22,0.00019178,2]
[390035427,1759941045117,-2163.07,0.00019178,2]
[390035429,1759941045128,-878.95,0.00019178,2]
[390035431,1759941045139,-151.0,0.00019178,2]
[390035434,1759941045149,-500.0,0.00019178,2]
[390035438,1759941045160,-151.0,0.00019178,2]
[390035441,1759941045170,-500.0,0.00019178,2]
[390035444,1759941045181,-908.34,0.00019178,2]
[390035447,1759941045192,-151.0,0.00019178,2]
[390035450,1759941045203,-500.0,0.00019178,2]
[390035453,1759941045212,-151.0,0.00019178,2]
[390035455,1759941045223,-866.423507,0.00019178,2]
[390035457,1759941045234,-921.7,0.00019178,2]
[390035459,1759941045244,-1562.67,0.00019178,2]
[390035461,1759941045254,-531.57,0.00019178,2]
[390035463,1759941045264,-151.0,0.00019178,2]
[390035465,1759941045275,-1170.08,0.00019178,2]
[390035467,1759941045287,-500.0,0.00019178,2]
[390035470,1759941045298,-151.0,0.00019178,2]
[390035473,1759941045308,-866.423507,0.00019178,2]
[390035476,1759941045319,-7844.37,0.00019178,2]
[390035479,1759941045334,-866.423507,0.00019178,2]
[390035482,1759941045350,-866.423507,0.00019178,2]
[390035486,1759941045367,-500.0,0.00019178,2]
[390035489,1759941045377,-1771.51,0.00019178,2]
[390035492,1759941045387,-769.32,0.00019178,2]
[390035495,1759941045396,-500.0,0.00019178,2]
[390035498,1759941045406,-4965.68,0.00019178,2]
[390035500,1759941045416,-3658.93,0.00019178,2]
[390035502,1759941045427,-4726.0,0.00019178,2]
[390035504,1759941045437,-8127.38,0.00019178,2]
[390035506,1759941045449,-500.0,0.00019178,2]
[390035508,1759941045459,-27385.91,0.00019178,2]
[390035510,1759941045469,-789.71,0.00019178,2]
[390035512,1759941045479,-500.0,0.00019178,2]
[390035514,1759941045489,-2736.83,0.00019178,2]
[390035516,1759941045499,-151.0,0.00019178,2]
[390035518,1759941045509,-500.0,0.00019178,2]
[390035520,1759941045519,-151.0,0.00019178,2]
[390035522,1759941045529,-1042.87,0.00019178,2]
[390035525,1759941045540,-2079.72,0.00019178,2]
[390035527,1759941045550,-151.0,0.00019178,2]
[390035529,1759941045559,-500.0,0.00019178,2]
[390035531,1759941045569,-500.0,0.00019178,2]
[390035533,1759941045579,-4497.13,0.00019178,2]
[390035535,1759941045589,-1547.31,0.00019178,2]
[390035537,1759941045599,-2064.56,0.00019178,2]
[390035539,1759941045608,-5466.55,0.00019178,2]
[390035541,1759941045618,-500.0,0.00019178,2]
[390035543,1759941045628,-500.0,0.00019178,2]
[390035545,1759941045638,-1323.75,0.00019178,2]
[390035547,1759941045647,-500.0,0.00019178,2]
[390035549,1759941045657,-500.0,0.00019178,2]
[390035552,1759941045668,-10931.82,0.00019178,2]
[390035554,1759941045678,-500.0,0.00019178,2]
[390035556,1759941045688,-465.67838721,0.00019178,2]
[390035558,1759941045697,-8248.54,0.00019178,2]
[390035560,1759941045707,-906.514106,0.00019178,2]
[390035562,1759941045716,-500.0,0.00019178,2]
[390035564,1759941045726,-906.514106,0.00019178,2]
[390035566,1759941045736,-623.75,0.00019178,2]
[390035568,1759941045746,-1137.56,0.00019178,2]
[390035570,1759941045755,-151.0,0.00019178,2]
[390035572,1759941045766,-824.3,0.00019178,2]
[390035574,1759941045776,-500.0,0.00019178,2]
[390035576,1759941045786,-906.514106,0.00019178,2]
[390035578,1759941045796,-151.0,0.00019178,2]
[390035580,1759941045806,-906.514106,0.00019178,2]
[390035582,1759941045816,-500.0,0.00019178,2]
[390035584,1759941045826,-151.0,0.00019178,2]
[390035586,1759941045836,-500.0,0.00019178,2]
[390035588,1759941045846,-500.0,0.00019178,2]
[390035590,1759941045856,-1764.0,0.00019178,2]
[390035592,1759941045866,-11234.28,0.00019178,2]
[390035594,1759941045875,-151.0,0.00019178,2]
[390035596,1759941045886,-151.0,0.00019178,2]
[390035599,1759941045896,-247.59934,0.00019178,2]
[390035601,1759941045906,-1163.37,0.00019178,2]
[390035603,1759941045915,-500.0,0.00019178,2]
[390035606,1759941045925,-500.0,0.00019178,2]
[390035608,1759941045935,-247.59934,0.00019178,2]
[390035610,1759941045945,-500.0,0.00019178,2]
[390035612,1759941045955,-1600.59,0.00019178,2]
[390035614,1759941045965,-247.59934,0.00019178,2]
[390035617,1759941045975,-811.04,0.00019178,2]
[390035620,1759941045986,-568.56,0.00019178,2]
[390035623,1759941045996,-811.04,0.00019178,2]
[390035626,1759941046006,-26604.69,0.00019178,2]
[390035629,1759941046016,-500.0,0.00019178,2]
[390035632,1759941046026,-811.04,0.00019178,2]
[390035635,1759941046035,-151.0,0.00019178,2]
[390035649,1759941046150,-1362.24,0.00019178,2]
[390035651,1759941046160,-247.59934,0.00019178,2]
[390035653,1759941046170,-811.04,0.00019178,2]
[390035655,1759941046179,-811.04,0.00019178,2]
[390035657,1759941046188,-151.0,0.00019178,2]
[390035659,1759941046197,-151.0,0.00019178,2]
[390035661,1759941046206,-811.04,0.00019178,2]
[390035663,1759941046216,-811.04,0.00019178,2]
[390035665,1759941046225,-811.04,0.00019178,2]
[390035667,1759941046234,-151.0,0.00019178,2]
[390035669,1759941046244,-811.04,0.00019178,2]
[390035671,1759941046253,-151.0,0.00019178,2]
[390035673,1759941046263,-811.04,0.00019178,2]
[390035675,1759941046273,-2146.96,0.00019178,2]
[390035677,1759941046283,-811.04,0.00019178,2]
[390035679,1759941046297,-811.04,0.00019178,2]
[390035681,1759941046307,-500.0,0.00019178,2]
[390035683,1759941046318,-811.04,0.00019178,2]
[390035685,1759941046329,-811.04,0.00019178,2]
[390035687,1759941046339,-151.0,0.00019178,2]
[390035689,1759941046349,-811.04,0.00019178,2]
[390035691,1759941046360,-691.12,0.00019178,2]
[390035693,1759941046369,-151.0,0.00019178,2]
[390035695,1759941046379,-811.04,0.00019178,2]
[390035697,1759941046388,-811.04,0.00019178,2]
[390035699,1759941046397,-811.04,0.00019178,2]
[390035701,1759941046410,-2898.96,0.00019178,2]
[390035703,1759941046419,-811.04,0.00019178,2]
[390035705,1759941046428,-151.0,0.00019178,2]
[390035707,1759941046438,-811.04,0.00019178,2]
[390035709,1759941046448,-811.04,0.00019178,2]
[390035711,1759941046458,-500.0,0.00019178,2]
[390035713,1759941046467,-811.04,0.00019178,2]
[390035715,1759941046477,-811.04,0.00019178,2]
[390035717,1759941046486,-151.0,0.00019178,2]
[390035719,1759941046495,-151.0,0.00019178,2]
[390035721,1759941046505,-1827.85,0.00019178,2]
[390035723,1759941046514,-500.0,0.00019178,2]
[390035725,1759941046524,-3057.430714,0.00019178,2]
[390035727,1759941046534,-1540.29,0.00019178,2]
[390035729,1759941046544,-151.0,0.00019178,2]
[390035731,1759941046553,-5161.45,0.00019178,2]
[390035733,1759941046563,-1275.75,0.00019178,2]
[390035735,1759941046572,-500.0,0.00019178,2]
[390035737,1759941046582,-3057.430714,0.00019178,2]
[390035739,1759941046592,-15407.27,0.00019178,2]
[390035741,1759941046601,-3057.430714,0.00019178,2]
[390035743,1759941046611,-151.0,0.00019178,2]
[390035745,1759941046619,-588.87,0.00019178,2]
[390035747,1759941046629,-3057.430714,0.00019178,2]
[390035749,1759941046638,-501.12586889,0.00019178,2]
[390035751,1759941046647,-500.0,0.00019178,2]
[390035753,1759941046658,-500.0,0.00019178,2]
[390035755,1759941046668,-500.0,0.00019178,2]
[390035757,1759941046676,-2292.75,0.00019178,2]
[390035759,1759941046686,-2001.64,0.00019178,2]
[390035761,1759941046695,-194.72200446,0.00019178,2]
[390035763,1759941046705,-500.0,0.00019178,2]
[390035765,1759941046714,-500.0,0.00019178,2]
[390035767,1759941046723,-618.33,0.00019178,2]
[390035769,1759941046732,-1289.57,0.00019178,2]
[390035771,1759941046742,-500.0,0.00019178,2]
[390035773,1759941046752,-1798.62,0.00019178,2]
[390035775,1759941046761,-956.0,0.00019178,2]
[390035776,1759941046771,-10004.13,0.00019178,2]
[390035777,1759941046781,-1843.5,0.00019178,2]
[390035778,1759941046790,-500.0,0.00019178,2]
[390035779,1759941046800,-500.0,0.00019178,2]
[390035780,1759941046809,-1025.22,0.00019178,2]
[390035782,1759941046819,-688.12,0.00019178,2]
[390035784,1759941046828,-500.0,0.00019178,2]
[390035786,1759941046839,-2474.79,0.00019178,2]
[390035788,1759941046848,-500.0,0.00019178,2]
[390035790,1759941046857,-500.0,0.00019178,2]
[390035792,1759941046867,-151.0,0.00019178,2]
[390035794,1759941046876,-500.0,0.00019178,2]
[390035796,1759941046886,-151.0,0.00019178,2]
[390035798,1759941046895,-1490.96,0.00019178,2]
[390035801,1759941046904,-151.0,0.00019178,2]
[390035803,1759941046913,-1102.48,0.00019178,2]
[390035805,1759941046922,-500.0,0.00019178,2]
[390035807,1759941046931,-500.0,0.00019178,2]
[390035808,1759941046940,-3444.06,0.00019178,2]
[390035810,1759941046950,-1025.7,0.00019178,2]
[390035813,1759941046959,-151.0,0.00019178,2]
[390035815,1759941046969,-1684.61,0.00019178,2]
[390035817,1759941046978,-3659.26,0.00019178,2]
[390035819,1759941046987,-6465.72,0.00019178,2]
[390035821,1759941046996,-151.0,0.00019178,2]
[390035823,1759941047005,-4155.88,0.00019178,2]
[390035825,1759941047015,-151.0,0.00019178,2]
[390035827,1759941047025,-4421.06,0.00019178,2]
[390035829,1759941047035,-151.0,0.00019178,2]
[390035831,1759941047045,-209.433698,0.00019178,2]
[390035833,1759941047054,-500.0,0.00019178,2]
[390035835,1759941047063,-3394.87,0.00019178,2]
[390035837,1759941047073,-500.0,0.00019178,2]
[390035839,1759941047082,-209.433698,0.00019178,2]
[390035841,1759941047092,-500.0,0.00019178,2]
[390035843,1759941047101,-209.433698,0.00019178,2]
[390035845,1759941047111,-959.5,0.00019178,2]
[390035847,1759941047121,-209.433698,0.00019178,2]
[390035848,1759941047130,-610.51,0.00019178,2]
[390035850,1759941047139,-1000.0,0.00019178,2]
[390035853,1759941047149,-500.0,0.00019178,2]
[390035855,1759941047159,-151.0,0.00019178,2]
[390035857,1759941047168,-713.6,0.00019178,2]
[390035859,1759941047178,-1094.53,0.00019178,2]
[390035861,1759941047188,-151.0,0.00019178,2]
[390035863,1759941047197,-151.0,0.00019178,2]
[390035865,1759941047207,-500.0,0.00019178,2]
[390035867,1759941047216,-151.0,0.00019178,2]
[390035869,1759941047226,-500.0,0.00019178,2]
[390035871,1759941047235,-500.0,0.00019178,2]
[390035873,1759941047244,-500.0,0.00019178,2]
[390035875,1759941047254,-511.74554806,0.00019178,2]
[390035877,1759941047263,-1642.11,0.00019178,2]
[390035879,1759941047272,-2336.57,0.00019178,2]
[390035881,1759941047282,-8621.08,0.00019178,2]
[390035883,1759941047295,-152.107619,0.00019178,2]
[390035885,1759941047304,-711.84,0.00019178,2]
[390035887,1759941047314,-152.107619,0.00019178,2]
[390035889,1759941047323,-5940.01,0.00019178,2]
[390035891,1759941047333,-500.0,0.00019178,2]
[390035893,1759941047343,-152.107619,0.00019178,2]
[390035895,1759941047352,-279.833019,0.00019178,2]
[390035897,1759941047363,-176.69975,0.00019178,2]
[390035899,1759941047374,-279.833019,0.00019178,2]
[390035901,1759941047383,-152.107619,0.00019178,2]
[390035903,1759941047393,-3964.43,0.00019178,2]
[390035905,1759941047402,-176.69975,0.00019178,2]
[390035907,1759941047412,-1676.61,0.00019178,2]
[390035909,1759941047422,-279.833019,0.00019178,2]
[390035911,1759941047432,-176.69975,0.00019178,2]
[390035913,1759941047441,-151.0,0.00019178,2]
[390035915,1759941047451,-500.0,0.00019178,2]
[390035918,1759941047461,-279.833019,0.00019178,2]
[390035920,1759941047471,-176.69975,0.00019178,2]
[390035922,1759941047480,-151.0,0.00019178,2]
[390035924,1759941047490,-940.47,0.00019178,2]
[390035926,1759941047500,-151.0,0.00019178,2]
[390035928,1759941047509,-558.48351478,0.00019178,2]
[390035930,1759941047519,-500.0,0.00019178,2]
[390035932,1759941047528,-500.0,0.00019178,2]
[390035934,1759941047539,-151.0,0.00019178,2]
[390035936,1759941047548,-1780.0,0.00019178,2]
[390035938,1759941047558,-151.0,0.00019178,2]
[390035940,1759941047567,-10128.69,0.00019178,2]
[390035942,1759941047576,-2589.29,0.00019178,2]
[390035944,1759941047586,-1653.86,0.00019178,2]
[390035946,1759941047595,-906.26,0.00019178,2]
[390035948,1759941047604,-500.0,0.00019178,2]
[390035950,1759941047613,-971.96,0.00019178,2]
[390035952,1759941047623,-500.0,0.00019178,2]
[390035954,1759941047632,-500.0,0.00019178,2]
[390035956,1759941047641,-4927.52,0.00019178,2]
[390035958,1759941047651,-3358.15,0.00019178,2]
[390035960,1759941047661,-500.0,0.00019178,2]
[390035962,1759941047670,-500.0,0.00019178,2]
[390035964,1759941047680,-487.1912684,0.00019178,2]
[390035966,1759941047690,-1141.46,0.00019178,2]
[390035969,1759941047699,-871.52,0.00019178,2]
[390035971,1759941047708,-500.0,0.00019178,2]
[390035973,1759941047718,-3740.67,0.00019178,2]
[390035975,1759941047727,-1703.79,0.00019178,2]
[390035977,1759941047737,-2267.5,0.00019178,2]
[390035979,1759941047746,-500.0,0.00019178,2]
[390035980,1759941047756,-1466.7,0.00019178,2]
[390035983,1759941047766,-500.0,0.00019178,2]
[390035984,1759941047775,-500.0,0.00019178,2]
[390035986,1759941047784,-10297.24,0.00019178,2]
[390035988,1759941047794,-840.53,0.00019178,2]
[390035990,1759941047804,-500.0,0.00019178,2]
[390035993,1759941047813,-856.34,0.00019178,2]
[390035994,1759941047822,-1324.1,0.00019178,2]
[390035996,1759941047832,-776.13,0.00019178,2]
[390035999,1759941047842,-500.0,0.00019178,2]
[390036001,1759941047851,-1021.89,0.00019178,2]
[390036003,1759941047860,-500.0,0.00019178,2]
[390036005,1759941047869,-500.0,0.00019178,2]
[390036007,1759941047878,-500.0,0.00019178,2]
[390036009,1759941047887,-2526.03,0.00019178,2]
[390036011,1759941047896,-7456.61,0.00019178,2]
[390036013,1759941047905,-889.07,0.00019178,2]
[390036015,1759941047915,-500.0,0.00019178,2]
[390036016,1759941047924,-674.7,0.00019178,2]
[390036018,1759941047933,-500.0,0.00019178,2]
[390036021,1759941047942,-500.0,0.00019178,2]
[390036022,1759941047951,-500.0,0.00019178,2]
[390036025,1759941047961,-353.4163206,0.00019178,2]
[390036027,1759941047971,-158.51375155,0.00019178,2]
[390036029,1759941047981,-151.443601,0.00019178,2]
[390036030,1759941047991,-1239.99,0.00019178,2]
[390036033,1759941048000,-500.0,0.00019178,2]
[390036034,1759941048010,-500.0,0.00019178,2]
[390036037,1759941048022,-482.57156272,0.00019178,2]
[390036039,1759941048033,-500.0,0.00019178,2]
[390036041,1759941048043,-500.0,0.00019178,2]
[390036043,1759941048052,-500.0,0.00019178,2]
[390036044,1759941048062,-500.0,0.00019178,2]
[390036047,1759941048072,-500.0,0.00019178,2]
[390036049,1759941048082,-500.0,0.00019178,2]
[390036051,1759941048092,-1180.44,0.00019178,2]
[390036053,1759941048102,-519.936932,0.00019178,2]
[390036055,1759941048112,-500.0,0.00019178,2]
[390036057,1759941048122,-500.0,0.00019178,2]
[390036059,1759941048131,-500.0,0.00019178,2]
[390036061,1759941048141,-500.0,0.00019178,2]
[390036063,1759941048150,-500.0,0.00019178,2]
[390036065,1759941048160,-516.14,0.00019178,2]
[390036067,1759941048171,-500.0,0.00019178,2]
[390036069,1759941048180,-500.0,0.00019178,2]
[390036071,1759941048190,-329.30100867,0.00019178,2]
[390036073,1759941048200,-519.936932,0.00019178,2]
[390036075,1759941048210,-527.62,0.00019178,2]
[390036077,1759941048220,-151.0,0.00019178,2]
[390036079,1759941048230,-1403.56,0.00019178,2]
[390036081,1759941048240,-519.936932,0.00019178,2]
[390036084,1759941048250,-500.0,0.00019178,2]
[390036086,1759941048261,-151.0,0.00019178,2]
[390036087,1759941048271,-519.936932,0.00019178,2]
[390036089,1759941048280,-151.0,0.00019178,2]
[390036091,1759941048294,-151.0,0.00019178,2]
[390036094,1759941048304,-500.0,0.00019178,2]
[390036096,1759941048314,-4376.03,0.00019178,2]
[390036098,1759941048323,-5149.64,0.00019178,2]
[390036100,1759941048334,-2266.48,0.00019178,2]
[390036102,1759941048344,-261.75757329,0.00019178,2]
[390036104,1759941048353,-1000.0,0.00019268,2]
[390036106,1759941048365,-1000.0,0.00019268,2]
[390036108,1759941048376,-500.0,0.00019268,2]
[390036110,1759941048387,-151.0,0.00019268,2]
[390036112,1759941048397,-500.0,0.00019268,2]
[390036114,1759941048407,-151.0,0.00019268,2]
[390036116,1759941048416,-1000.0,0.00019268,2]